[Event "56th Biel GMT Classical 2023"]
[White "Moussard,Jules"]
[Black "Amin,Bassem"]
[Site "Biel"]
[Round "4.2"]
[Annotator "TA"]
[Result "1/2-1/2"]
[Date "2023.07.21"]
[WhiteElo "2654"]
[BlackElo "2694"]
[PlyCount "74"]
[TimeControl "60"]

{[%evp 23,74,11,13,12,9,20,0,14,8,13,18,16,13,0,21,8,78,102,108,109,103,108,105,105,110,108,103,116,106,108,135,133,94,66,65,68,61,0,317,0,0,0,0,0,0,0,0,0,0,0,0,0,0]} 1. e4 {[%emt 0:0:7]} e5 {[%emt 0:1:21]} 2. Nf3 {[%emt 0:0:8]} Nc6 {[%emt 0:0:4]} 3. Bb5 {[%emt 0:0:9][%cal Bf1b5,Bb5a4,Ba4b3][%mdl 32]} a6 {[%emt 0:0:39]} 4. Ba4 {[%emt 0:0:8]} Nf6 {[%emt 0:0:5]} 5. O-O {[%emt 0:0:8]} Be7 {[%emt 0:0:4]} 6. Re1 {[%emt 0:0:8]} b5 {[%emt 0:0:5]} 7. Bb3 {[%emt 0:0:6]} d6 {[%emt 0:0:1]} 8. c3 {[%emt 0:0:10]} O-O {[%emt 0:0:9]} 9. h3 {[%emt 0:0:7]} Nb8 {[%emt 0:0:12]} 10. d4 {[%emt 0:0:9]} Nbd7 {[%emt 0:0:3]} 11. a4 {[%emt 0:0:35]} Bb7 {[%emt 0:0:9]} 12. Nbd2 {[%emt 0:0:7]} c5 {[%emt 0:0:52]} 13. Bc2 {[%emt 0:0:8] C95: Closed Ruy Lopez: Breyer Variation with 10 d4.} Qc7 {[%emt 0:4:10]} 14. Nf1 {[%emt 0:0:17]} cxd4 {[%emt 0:6:12]} 15. cxd4 {[%emt 0:0:12]} Rfc8 {[%emt 0:0:36]} (15... Rac8 {with more complications.} 16. Ne3 Nxe4 17. Nf5 Qxc2 18. Nxe7+ Kh8 )16. Bb1 {[%emt 0:0:35]} bxa4 {[%emt 0:4:45] [#]} 17. Bd2 $146 {[%emt 0:0:16]} ({Predecessor:} 17. Rxa4 Bc6 18. Ra1 Qb7 19. Ng3 Bf8 20. d5 Bb5 21. Ne2 Nc5 22. Nc3 Be8 23. Bc2 {½-½ Fedorchuk,S (2599)-Postny,E (2609) Bundesliga 0607 2006 (6.3)} )exd4 {[%emt 0:55:49][%cal Oa4a3]} 18. Nxd4 {[%emt 0:3:3]} Nc5 {[%emt 0:0:58][%cal Rf6e4]} 19. Nf5 {[%emt 0:48:1] Bc3 would be deadly.} Nb3 {[%emt 0:5:17]} (19... Bxe4 20. Nxe7+ Qxe7 21. f3 $16 )(19... Bf8 $1 $11 {keeps the balance.} )20. Rxa4 $16 {[%emt 0:3:34]} Nxd2 {[%emt 0:0:8]} 21. Nxe7+ {[%emt 0:1:51]} Qxe7 {[%emt 0:0:2]} 22. Qxd2 {[%emt 0:0:14]} Rc5 {[%emt 0:1:55]} 23. Rd4 {[%emt 0:1:40]} Re8 {[%emt 0:3:26][%cal Oc5d5]} 24. Ng3 {[%emt 0:17:31]} h5 {[%emt 0:8:38]} 25. b4 {[%emt 0:8:58]} Re5 {[%emt 0:0:22] [#]} 26. f4 $1 {[%emt 0:4:50]} ({Weaker is} 26. Rxd6 Nd5 27. f4 (27. Nf5 $2 Rxf5 $19 {[%mdl 64] Pin} )Qxd6 $15 )Rd5 {[%emt 0:0:52]} 27. Rxd5 {[%emt 0:1:29]} Bxd5 {[%emt 0:0:30]} 28. e5 {[%emt 0:2:35]} g6 {[%emt 0:5:5] Prevents Nf5} 29. Re2 $1 {[%emt 0:6:16] White is more active.} Qa7+ {[%emt 0:0:25]} 30. Kh2 {[%emt 0:1:49]} ({Better is} 30. Kh1 $1 $14 Bc4 31. Bd3 (31. exf6 Bxe2 32. Be4 Re6 $16 )Bxd3 32. Qxd3 dxe5 33. fxe5 )h4 $2 {[%emt 0:0:8][%mdl 8192]} (30... dxe5 $11 31. fxe5 h4 )31. Nf5 $2 {[%emt 0:3:16]} (31. exf6 $18 hxg3+ 32. Kxg3 Rxe2 33. Qxe2 )dxe5 $11 {[%emt 0:0:25] The position is equal.} 32. Nd6 {[%emt 0:0:36]} Re6 {[%emt 0:2:9]} 33. fxe5 {[%emt 0:0:5] [#] Hoping for Bf5.} Qe7 {[%emt 0:1:20]} 34. Nc8 {[%emt 0:4:57]} Qc7 {[%emt 0:0:53][%cal Oe6e5] White must now prevent ...Rxe5!} 35. Nd6 {[%emt 0:0:2]} Qe7 {[%emt 0:0:18]} 36. Nc8 {[%emt 0:1:6]} Qc7 {[%emt 0:0:32][%cal Oe6e5] Threatens to win with ...Rxe5!} 37. Nd6 {[%emt 0:0:26]} Qe7 {[%emt 0:1:39] An interesting game.   Weighted Error Value: White=0.17 (very precise) /Black=0.20 (precise)} 1/2-1/2

[Event "56th Biel GMT Classical 2023"]
[White "Deac,Bogdan-Daniel"]
[Black "Navara,David"]
[Site "Biel"]
[Round "4.3"]
[Annotator "TA"]
[Result "1/2-1/2"]
[Date "2023.07.21"]
[WhiteElo "2693"]
[BlackElo "2689"]
[PlyCount "48"]
[TimeControl "60"]

{[%evp 9,48,5,6,-16,0,7,9,0,0,0,8,8,17,6,11,19,3,0,11,22,14,10,0,0,13,0,10,8,14,11,12,0,0,0,6,0,0,0,24,0,8]} 1. c4 {[%emt 0:2:30]} Nf6 {[%emt 0:0:9]} 2. Nc3 {[%emt 0:1:33]} e5 {[%emt 0:0:47]} 3. e3 {[%emt 0:0:2]} Bb4 {[%emt 0:0:37]} 4. Qb3 {[%emt 0:0:5]} Bxc3 {[%emt 0:1:37]} 5. Qxc3 {[%emt 0:1:7]} Qe7 {[%emt 0:1:47]} 6. a3 {[%emt 0:0:5] A22: English Opening: 1...e5 2 Nc3 Nf6.} d5 {[%emt 0:1:57]} 7. cxd5 {[%emt 0:0:6]} Nxd5 {[%emt 0:0:7] [#]} 8. Qc2 $146 {[%emt 0:0:2]} ({Predecessor:} 8. Qb3 Nb6 9. Qc2 a5 10. Nf3 O-O 11. d3 a4 12. b4 axb3 13. Qxb3 Na4 14. Be2 {0-1 Beshukov,S (2441)-Visser,H (2262) Vienna op 18th 2013 (4)} )O-O {[%emt 0:2:28]} 9. b4 {[%emt 0:0:8]} Bg4 {[%emt 0:16:6]} 10. Bb2 {[%emt 0:9:59]} Nd7 {[%emt 0:2:29]} 11. Bd3 {[%emt 0:3:32]} N5f6 {[%emt 0:8:5]} 12. h3 {[%emt 0:4:16]} ({Of course not} 12. Qxc7 Rfc8 13. Qxb7 a5 $17 )Bh5 {[%emt 0:3:56]} 13. Ne2 {[%emt 0:2:35]} a5 {[%emt 0:4:57]} 14. Ng3 {[%emt 0:4:24] Nxh5 would be deadly.} ({Don't play} 14. Qxc7 Rfc8 15. Qxb7 Qd6 $17 )Bg6 {[%emt 0:1:38]} 15. Bxg6 {[%emt 0:0:6]} hxg6 {[%emt 0:0:10]} 16. b5 {[%emt 0:0:4]} a4 {[%emt 0:12:14]} 17. O-O {[%emt 0:8:32]} Ra5 {[%emt 0:1:11][%cal Ba8a5,Ba5b5,Bb5b6,Bb6c6][%mdl 32]} 18. Bc3 {[%emt 0:12:53]} Rxb5 {[%emt 0:0:12]} 19. Qxa4 {[%emt 0:0:4]} Rb6 {[%emt 0:8:58]} 20. Qc4 {[%emt 0:0:40]} Rc6 {[%emt 0:5:7]} 21. Qb5 {[%emt 0:1:19] [#] Hoping for Bb4.} Rb6 {[%emt 0:0:42]} 22. Qc4 {[%emt 0:12:3]} Rc6 {[%emt 0:0:9]} 23. Qb5 {[%emt 0:7:5] Threatens to win with Bb4.} Rb6 {[%emt 0:0:16]} 24. Qc4 {[%emt 0:0:12]} Rc6 {[%emt 0:0:35] A rather calm draw.   Weighted Error Value: White=0.03 (flawless) /Black=0.02 (flawless)} 1/2-1/2

[Event "56th Biel GMT Classical 2023"]
[White "Keymer,Vincent"]
[Black "Yu,Yangyi"]
[Site "Biel"]
[Round "4.4"]
[Annotator "TA"]
[Result "1-0"]
[Date "2023.07.21"]
[WhiteElo "2690"]
[BlackElo "2735"]
[PlyCount "141"]
[TimeControl "60"]

{[%evp 18,141,22,12,19,18,29,8,52,33,81,80,91,90,84,93,95,94,91,55,69,84,80,73,78,61,85,71,78,73,77,70,77,76,77,56,68,43,39,33,46,60,52,50,66,66,72,70,68,68,68,65,65,54,71,45,66,66,39,60,83,73,174,177,202,190,194,163,184,174,183,0,180,173,167,139,153,140,140,122,181,176,202,209,228,212,222,200,222,201,266,254,290,284,287,287,335,319,321,321,323,315,325,308,311,311,313,300,291,291,722,719,712,712,642,642,592,587,1562,1419,2435,2118,6428,6316,4952,2500]} 1. d4 {[%emt 0:0:3]} Nf6 {[%emt 0:0:20]} 2. c4 {[%emt 0:0:4]} e6 {[%emt 0:0:11]} 3. Nf3 {[%emt 0:0:3]} d5 {[%emt 0:0:19]} 4. g3 {[%emt 0:0:5]} Be7 {[%emt 0:0:58]} 5. Bg2 {[%emt 0:0:6]} O-O {[%emt 0:0:10]} 6. Nc3 {[%emt 0:0:11]} dxc4 {[%emt 0:0:35]} 7. Ne5 {[%emt 0:0:5]} c5 {[%emt 0:0:44]} 8. dxc5 {[%emt 0:0:7]} Qxd1+ {[%emt 0:0:10]} 9. Nxd1 {[%emt 0:0:6]} Bxc5 {[%emt 0:0:10]} 10. O-O {[%emt 0:0:10]} Nd5 {[%emt 0:3:18] E06: Closed Catalan: Early deviations.} 11. Ne3 {[%emt 0:0:6]} Bxe3 {[%emt 0:7:35]} 12. Bxe3 {[%emt 0:4:24] [#]} Nc6 $146 {[%emt 0:21:39] The position is equal.} ({Predecessor:} 12... c3 13. b4 Nd7 14. Nd3 b6 15. Bxd5 exd5 16. Rfc1 Ba6 17. Rxc3 Rfc8 18. Ra3 Bc4 {½-½ Harikrishna,P (2704)-Lysyj,I (2606) ChessKid Cup Div 3 W rapid 2023 (3.1)} )13. Nxc4 {[%emt 0:8:43]} Rd8 {[%emt 0:4:53]} (13... b6 $14 )14. Rfd1 $16 {[%emt 0:24:24]} b5 {[%emt 0:16:28]} 15. Bg5 $1 {[%emt 0:8:39][%cal Oc4a5] Na5! would be deadly. A strong pair of Bishops.} f6 {[%emt 0:1:38]} 16. Ne3 {[%emt 0:1:2][%cal Re3d5]} Nce7 {[%emt 0:18:20]} 17. Nxd5 {[%emt 0:2:5]} Nxd5 {[%emt 0:4:28]} 18. Bd2 {[%emt 0:5:23]} f5 {[%emt 0:6:43]} 19. Ba5 {[%emt 0:8:11]} Rd7 {[%emt 0:0:2]} 20. Rd4 {[%emt 0:3:31]} Bb7 {[%emt 0:1:10]} 21. Re1 {[%emt 0:2:13]} Re8 {[%emt 0:9:40]} 22. h4 {[%emt 0:4:28]} Ree7 {[%emt 0:1:36]} 23. Red1 {[%emt 0:1:44]} Bc6 {[%emt 0:2:42]} 24. R4d3 {[%emt 0:4:41]} a6 {[%emt 0:0:13]} 25. R3d2 {[%emt 0:4:30][%cal Bd3d2,Bd2c2,Bc2c6][%mdl 32]} Bb7 {[%emt 0:0:44]} 26. Rc1 {[%emt 0:2:14]} Kf7 {[%emt 0:0:38]} 27. Rdc2 {[%emt 0:2:38]} h6 {[%emt 0:1:20]} 28. Re1 {[%emt 0:5:19]} Nf6 {[%emt 0:3:21]} 29. Bxb7 {[%emt 0:1:7]} Rxb7 {[%emt 0:0:0]} 30. Rc6 {[%emt 0:0:34][%cal Oa5d8]} Ra7 {[%emt 0:0:1]} 31. Rd1 {[%emt 0:1:25]} Red7 {[%emt 0:0:1]} 32. Rxd7+ Nxd7 {[%emt 0:0:1][%mdl 4096] Endgame KRB-KRN} 33. b3 {[%emt 0:2:59]} Nf6 {[%emt 0:0:34]} 34. f3 {[%emt 0:5:54]} Nd5 {[%emt 0:1:58]} 35. Kf2 {[%emt 0:0:6]} Ne7 {[%emt 0:0:23]} 36. Rb6 {[%emt 0:0:53]} Nd5 {[%emt 0:0:11]} 37. Rd6 {[%emt 0:2:41]} Ke7 {[%emt 0:0:41]} 38. Rd8 {[%emt 0:0:33]} Nf6 {[%emt 0:0:30]} 39. Rb8 {[%emt 0:1:15]} Kd6 {[%emt 0:2:25]} (39... Nd5 $16 )40. Bb4+ $18 {[%emt 0:0:0]} Kc6 {[%emt 0:0:0]} 41. Bc3 {[%emt 0:7:44]} Rf7 {[%emt 0:9:30]} 42. Bd4 {[%emt 0:7:45]} Kd5 {[%emt 0:5:38]} 43. Bb2 {[%emt 0:6:14]} Kc6 {[%emt 0:5:26]} 44. Bd4 {[%emt 0:0:6]} Kd5 $1 {[%emt 0:0:6]} 45. Rd8+ {[%emt 0:4:55]} Nd7 {[%emt 0:6:19]} 46. Bb2 {[%emt 0:2:37]} e5 {[%emt 0:7:27]} 47. Ra8 {[%emt 0:5:8] White is more active.} Nc5 {[%emt 0:0:17]} 48. Ba3 {[%emt 0:3:32]} Rf6 {[%emt 0:1:15] [#]} (48... f4 $16 49. Bxc5 Kxc5 )49. h5 $1 {[%emt 0:1:26]} Rc6 {[%emt 0:6:43] [#]} 50. Ra7 $1 {[%emt 0:9:35] Prevents Nd7} g6 {[%emt 0:0:40]} 51. Rf7 {[%emt 0:1:10]} gxh5 {[%emt 0:4:55]} 52. Rxf5 {[%emt 0:0:12]} Nd7 {[%emt 0:1:55]} 53. Rxh5 {[%emt 0:0:5]} a5 {[%emt 0:1:19]} 54. Be7 {[%emt 0:5:35]} ({Less strong is} 54. e4+ Kd4 $14 )a4 {[%emt 0:3:0]} 55. Rh1 {[%emt 0:1:18] e4+ is the strong threat.} axb3 {[%emt 0:3:10]} 56. axb3 {[%emt 0:0:4]} e4 {[%emt 0:0:2]} 57. f4 {[%emt 0:3:0]} Re6 {[%emt 0:0:1]} 58. Bd8 {[%emt 0:0:57]} Re8 {[%emt 0:1:52]} 59. Rh5+ {[%emt 0:2:36]} Kd4 {[%emt 0:0:1]} 60. Ba5 {[%emt 0:0:0] Threatens to win with e3+.} Nf6 {[%emt 0:0:0]} 61. Rxb5 {[%emt 0:1:45]} Ng4+ {[%emt 0:1:33]} 62. Kg2 {[%emt 0:3:34]} Ke3 {[%emt 0:2:37]} 63. Kf1 {[%emt 0:0:5]} Rc8 $2 {[%emt 0:0:24] [#]} (63... Kd4 64. Ke1 Rc8 65. Rb4+ Kd5 )64. Rc5 $3 {[%emt 0:6:8][%mdl 512] White is clearly winning.} Rb8 {[%emt 0:0:15]} 65. Rd5 {[%emt 0:1:48][%csl Gd5][%cal Ra5d2]} Nh2+ {[%emt 0:3:5]} 66. Ke1 {[%emt 0:0:4][%csl Gd5,Ge1][%cal Ra5d2]} Nf3+ {[%emt 0:0:3]} 67. exf3 {[%emt 0:0:3]} Kxf3 {[%emt 0:0:20]} 68. b4 {[%emt 0:1:5]} e3 {[%emt 0:0:3]} 69. f5 {[%emt 0:0:54]} Rc8 {[%emt 0:1:16]} 70. Rc5 {[%emt 0:0:5]} Rf8 {[%emt 0:0:44]} 71. Rc4 {[%emt 0:2:9] Weighted Error Value: White=0.08 (flawless) /Black=0.13 (very precise)} 1-0

[Event "56th Biel GMT Classical 2023"]
[White "Yu,Yangyi"]
[Black "Le,Quang Liem"]
[Site "Biel"]
[Round "5.1"]
[Annotator "TA"]
[Result "0-1"]
[Date "2023.07.24"]
[WhiteElo "2735"]
[BlackElo "2728"]
[PlyCount "72"]
[TimeControl "60"]

{[%evp 12,72,29,29,54,25,35,21,23,19,30,34,24,14,53,40,64,23,37,25,32,27,17,-24,-10,-107,-102,-113,-114,-110,-129,-97,-98,-112,-97,-104,-116,-292,-292,-268,-281,-280,-270,-512,-506,-505,-489,-692,-688,-669,-338,-410,-401,-412,-407,-841,-814,-920,-897,-29984,-29985,-29985,-29986]} 1. c4 {[%emt 0:0:9]} e6 {[%emt 0:0:47]} 2. Nc3 {[%emt 0:1:19]} d5 {[%emt 0:0:17]} 3. d4 {[%emt 0:0:10]} Nf6 {[%emt 0:0:16]} 4. cxd5 {[%emt 0:0:49]} exd5 {[%emt 0:0:12]} 5. Bg5 {[%emt 0:0:12][%cal Bc1g5,Bg5h4,Bh4g3][%mdl 32]} Bb4 {[%emt 0:0:42]} 6. e3 {[%emt 0:3:58]} h6 {[%emt 0:0:11]} 7. Bh4 {[%emt 0:9:32]} g5 {[%emt 0:0:11] D35: Queen's Gambit Declined: Exchange Variation.} 8. Bg3 {[%emt 0:0:5]} Ne4 {[%emt 0:0:9]} 9. a3 {[%emt 0:1:5]} Bxc3+ {[%emt 0:4:24] The position is equal.} 10. bxc3 {[%emt 0:0:41]} h5 {[%emt 0:0:10]} 11. f3 {[%emt 0:0:7]} Nxg3 {[%emt 0:0:8]} (11... Nxc3 $2 12. Qc2 $18 )12. hxg3 {[%emt 0:0:12]} Qe7 {[%emt 0:2:48]} 13. Kf2 {[%emt 0:0:47] [#]} Nd7 $146 {[%emt 0:3:33]} ({Predecessor:} 13... Be6 14. g4 h4 15. Nh3 Nd7 16. Bd3 O-O-O 17. a4 Rhf8 18. Qc2 Kb8 19. a5 Rc8 {1-0 Salem,A (2633)-Harsha,B (2527) Wch Blitz Almaty 2022 (3)} )14. Bd3 {[%emt 0:11:49] Prevents f5.} (14. c4 $5 {[%cal Rc4d5]} )Nf6 {[%emt 0:5:16]} 15. Qa4+ {[%emt 0:4:13]} Bd7 {[%emt 0:4:53]} 16. Qb4 {[%emt 0:1:30]} b6 {[%emt 0:0:40]} 17. Ne2 {[%emt 0:2:34]} c5 {[%emt 0:1:39][%cal Bc7c5,Bc5c4][%mdl 32]} 18. Qb2 {[%emt 0:1:31]} (18. dxc5 $11 bxc5 19. Qb2 )c4 $17 {[%emt 0:1:50]} 19. Bc2 {[%emt 0:4:12] [#]} O-O-O $1 {[%emt 0:0:36]} 20. Qb4 {[%emt 0:6:0]} Qe6 {[%emt 0:3:29] ...Rhe8 is the strong threat.} 21. Rae1 {[%emt 0:1:38]} Rde8 {[%emt 0:0:47]} 22. Ng1 {[%emt 0:0:9]} a5 {[%emt 0:4:25]} 23. Qb1 {[%emt 0:0:29]} Kc7 $36 {[%emt 0:0:50][%mdl 2048] Keeping White busy. Black is more active.} 24. e4 $2 {[%emt 0:19:14] White does not recover from this.} (24. Nh3 $17 )dxe4 $19 {[%emt 0:1:55]} 25. Bxe4 {[%emt 0:0:36]} h4 {[%emt 0:4:18]} 26. gxh4 {[%emt 0:4:33]} gxh4 {[%emt 0:4:5] aiming for ...Qd6.} (26... Rxh4 27. Rxh4 gxh4 28. Qc1 $15 )27. Qc1 $2 {[%emt 0:2:27] [#]} (27. Ne2 )Qd6 $1 {[%emt 0:0:22] And now ...Qg3+ would win.} 28. Nh3 {[%emt 0:0:44]} Nh5 {[%emt 0:3:14] Wards off Qf4} ({Inferior is} 28... Nxe4+ 29. fxe4 Qg3+ 30. Kf1 $17 )29. Kg1 {[%emt 0:4:56]} (29. Qg5 $142 f5 30. Bc2 Qg3+ {[%mdl 64] Skewer} 31. Qxg3+ hxg3+ 32. Kf1 Rxe1+ 33. Kxe1 )Qg3 {[%emt 0:7:32] Threatens to win with ...Rhg8.} 30. f4 {[%emt 0:3:34]} Qg7 {[%emt 0:13:21] Strongly threatening ...Ng3.} 31. f5 {[%emt 0:4:15]} Qg3 {[%emt 0:5:38][%cal Od7f5] Prevents Nf4.} 32. Re3 {[%emt 0:7:26]} Qd6 {[%emt 0:0:44]} 33. Rh2 {[%emt 0:8:17]} (33. Bf3 $142 Rxe3 34. Qxe3 )Ng3 {[%emt 0:0:48]} 34. Bf3 {[%emt 0:0:1]} Qh6 {[%emt 0:0:43]} ({Worse is} 34... Bxf5 35. Rxe8 Rxe8 36. Ng5 $15 (36. Nf4 $2 Be4 $17 ))35. Re1 {[%emt 0:1:30]} Rxe1+ {[%emt 0:0:8]} 36. Qxe1 {[%emt 0:0:2]} Re8 {[%emt 0:0:10] Weighted Error Value: White=0.72/Black=0.19 (very precise)} ({Weaker is} 36... Nxf5 37. Qe5+ Kc8 38. Qf4 $17 )0-1

[Event "56th Biel GMT Classical 2023"]
[White "Navara,David"]
[Black "Keymer,Vincent"]
[Site "Biel"]
[Round "5.2"]
[Annotator "TA"]
[Result "1/2-1/2"]
[Date "2023.07.24"]
[WhiteElo "2689"]
[BlackElo "2690"]
[PlyCount "103"]
[TimeControl "60"]

{[%evp 23,103,22,22,10,15,10,18,10,13,18,5,12,8,-5,53,35,47,50,33,24,38,27,20,26,65,56,72,12,16,-8,0,-59,-63,-49,-54,-50,-50,-663,0,0,0,0,0,0,0,0,0,0,0,-40,-100,-99,-68,-70,-45,-43,0,0,0,0,0,0,0,0,0,0,0,0,0,0,0,0,0,0,0,0,0,0,0,0,0,0]} 1. e4 {[%emt 0:0:2]} e5 {[%emt 0:0:4]} 2. Nf3 {[%emt 0:0:6]} Nc6 {[%emt 0:0:2]} 3. Bb5 {[%emt 0:0:5][%cal Bf1b5,Bb5a4,Ba4b3,Bb3a2][%mdl 32]} a6 {[%emt 0:0:4]} 4. Ba4 {[%emt 0:0:4]} Nf6 {[%emt 0:0:5]} 5. O-O {[%emt 0:0:5]} Be7 {[%emt 0:0:22]} 6. Re1 {[%emt 0:0:7]} b5 {[%emt 0:0:4]} 7. Bb3 {[%emt 0:0:5]} O-O {[%emt 0:0:4]} 8. a4 {[%emt 0:0:7]} b4 {[%emt 0:0:13]} 9. d3 {[%emt 0:0:13]} d6 {[%emt 0:2:22]} 10. c3 {[%emt 0:0:34]} Rb8 {[%emt 0:3:12]} 11. Nbd2 {[%emt 0:0:7]} Na5 {[%emt 0:0:53]} 12. Ba2 {[%emt 0:0:5]} c5 {[%emt 0:0:24]} 13. d4 {[%emt 0:0:43] C88: Closed Ruy Lopez: Anti-Marshall Systems.} cxd4 {[%emt 0:2:26]} 14. cxd4 {[%emt 0:0:12]} Bb7 {[%emt 0:0:3]} 15. d5 {[%emt 0:2:36] [#]} Nd7 $146 {[%emt 0:1:15]} ({Predecessor:} 15... Bc8 16. Nc4 Bg4 17. Nxa5 Qxa5 18. Bc4 Rfc8 19. Bf1 Bd8 20. h3 Bxf3 21. Qxf3 Bb6 {½-½ Lemutov,I (2390)-Astroukh,V (2474) BLR-ch15 email 2018} )16. Nc4 {[%emt 0:3:27]} Nxc4 {[%emt 0:0:52]} 17. Bxc4 {[%emt 0:0:7]} Rc8 {[%emt 0:0:4]} 18. b3 {[%emt 0:6:51]} Qa5 {[%emt 0:21:28]} (18... Nb6 $11 )19. Be3 {[%emt 0:6:2]} Bd8 {[%emt 0:0:15]} 20. Rc1 {[%emt 0:14:3]} Bb6 {[%emt 0:9:54]} 21. Qd2 {[%emt 0:30:38]} (21. Bd2 $5 {[%cal Rf3h4]} )Nf6 {[%emt 0:7:34]} 22. Bxb6 {[%emt 0:12:33]} Qxb6 {[%emt 0:0:5]} 23. Nh4 {[%emt 0:0:17] Nf5 is the strong threat.} a5 {[%emt 0:15:48]} 24. Nf5 {[%emt 0:2:23]} Qd8 $1 {[%emt 0:1:21] [#]} 25. Qg5 {[%emt 0:11:21] White is much more active.} (25. f4 $1 $16 {[%cal Rf4e5]} )g6 $11 {[%emt 0:0:28]} 26. f4 {[%emt 0:3:28]} exf4 {[%emt 0:17:44]} 27. e5 {[%emt 0:0:32]} ({White should try} 27. Nd4 $11 )dxe5 $15 {[%emt 0:1:10]} (27... Nxd5 $2 28. Qxd8 Rfxd8 29. Bxd5 Rxc1 30. Rxc1 Bxd5 31. Ne7+ Kg7 32. Nxd5 $18 )28. d6 {[%emt 0:4:33]} Nd7 {[%emt 0:3:46]} 29. Ne7+ {[%emt 0:2:8]} Kg7 $1 {[%emt 0:3:8] ...Qb6+ would be deadly.} 30. Rxe5 $2 {[%emt 0:1:8][%mdl 8192]} (30. Nf5+ $15 Kh8 31. Qxd8 Rcxd8 32. Nh6 )Nxe5 $2 {[%emt 0:3:30]} ({Black should play} 30... f6 $19 31. Nf5+ Kh8 )31. Qxe5+ $11 {[%emt 0:0:8]} f6 {[%emt 0:0:3]} 32. Qd4 {[%emt 0:0:51] Chess con chili.} Rc7 {[%emt 0:6:51][%mdl 64] [#] Pin} 33. Re1 {[%emt 0:1:35]} Rd7 {[%emt 0:0:33]} 34. Re6 {[%emt 0:0:43]} Rf7 {[%emt 0:2:46][%cal Rd7e7]} 35. Qxf4 {[%emt 0:2:18]} Ba6 {[%emt 0:4:20][%mdl 64] Decoy} 36. Bxa6 {[%emt 0:4:20]} Qb6+ {[%emt 0:0:5]} 37. Qe3 {[%emt 0:0:12]} Qxa6 {[%emt 0:0:46]} 38. Kf2 {[%emt 0:2:2]} Qb7 {[%emt 0:3:52]} ({Much worse is} 38... Rxd6 39. Nf5+ gxf5 40. Qg3+ Kh6 41. Qf4+ (41. Qxd6 Qxd6 42. Rxd6 Kg5 $15 )(41. Rxd6 Qa7+ 42. Kf1 Qc5 $11 )Kg7 42. Qg3+ Kh6 43. Rxd6 (43. Qxd6 Qxd6 44. Rxd6 Kg5 $15 )Qa7+ 44. Kf1 $11 )39. h4 {[%emt 0:0:20][%cal Oh4h5]} h5 {[%emt 0:0:36]} (39... Rf8 $5 )40. Qc5 {[%emt 0:0:0] The position is equal.} Qa7 {[%emt 0:0:0]} 41. Qxa7 {[%emt 0:3:4]} Rxa7 {[%emt 0:3:2][%mdl 4096] Endgame KRR-KRN} 42. Ke3 {[%emt 0:14:7]} Rf8 {[%emt 0:10:16]} 43. Kd4 {[%emt 0:1:4]} Kf7 {[%emt 0:1:7]} 44. Kd5 {[%emt 0:1:56]} Re8 {[%emt 0:12:46] Strongly threatening ...Rd7.} 45. Nc6 $1 {[%emt 0:0:39] Intending Rxe8 and mate.} Rxe6 {[%emt 0:2:12]} 46. Nd8+ {[%emt 0:0:9]} Ke8 {[%emt 0:0:9]} 47. Nxe6 {[%emt 0:0:7]} g5 {[%emt 0:8:9]} 48. Kc6 {[%emt 0:2:8]} gxh4 {[%emt 0:3:54] And now ...Rh7 would win.} 49. Nc7+ {[%emt 0:0:20]} Kd8 {[%emt 0:0:3] aiming for ...f5.} 50. Ne6+ $1 {[%emt 0:1:13]} Ke8 {[%emt 0:3:17] Threatens to win with ...Rh7.} (50... Kc8 $5 51. Nc5 $8 Kd8 52. Ne6+ (52. Nb7+ $2 Rxb7 53. Kxb7 f5 $19 )Ke8 53. Nc7+ Kd8 54. Ne6+ $11 )51. Nc7+ {[%emt 0:0:10]} Kd8 {[%emt 0:0:5] White must now prevent ...f5.} 52. Ne6+ $1 {[%emt 0:0:6] An exciting game.   Weighted Error Value: White=0.16 (very precise) /Black=0.25 (precise)} 1/2-1/2

[Event "56th Biel GMT Classical 2023"]
[White "Amin,Bassem"]
[Black "Deac,Bogdan-Daniel"]
[Site "Biel"]
[Round "5.3"]
[Annotator "TA"]
[Result "1/2-1/2"]
[Date "2023.07.24"]
[WhiteElo "2694"]
[BlackElo "2693"]
[PlyCount "85"]
[TimeControl "60"]

{[%evp 20,85,16,13,26,23,16,18,15,14,28,26,32,18,11,13,10,14,11,7,13,7,25,8,12,13,37,37,37,37,37,37,37,18,25,18,13,17,25,25,25,25,25,25,33,13,13,13,13,13,13,-5,-5,-5,-5,-5,-5,-5,-5,-5,-4,-4,-4,-4,-4,-4,-1,-1]} 1. Nf3 {[%emt 0:0:57]} c5 {[%emt 0:0:18]} 2. g3 {[%emt 0:0:18]} Nc6 {[%emt 0:1:5]} 3. Bg2 {[%emt 0:0:15]} d5 {[%emt 0:0:4]} 4. d4 {[%emt 0:0:20]} Nf6 {[%emt 0:0:11]} 5. O-O {[%emt 0:0:9]} e6 {[%emt 0:0:2]} 6. c4 {[%emt 0:0:19]} dxc4 {[%emt 0:0:2]} 7. dxc5 {[%emt 0:3:51]} Qxd1 {[%emt 0:0:2]} 8. Rxd1 {[%emt 0:0:9]} Bxc5 {[%emt 0:0:2]} 9. Nbd2 {[%emt 0:0:12][%cal Bb1d2,Bd2b3,Bb3a5,Ba5c6][%mdl 32]} c3 {[%emt 0:0:1]} 10. bxc3 {[%emt 0:0:6]} O-O {[%emt 0:0:5]} 11. Nb3 {[%emt 0:0:16]} Be7 {[%emt 0:0:1] E04: Open Catalan: 5 Nf3.} 12. Nfd4 {[%emt 0:4:4]} Nxd4 {[%emt 0:0:29]} 13. cxd4 {[%emt 0:0:37]} Nd5 {[%emt 0:0:28]} 14. Bd2 {[%emt 0:18:32]} f5 {[%emt 0:0:13]} 15. Na5 {[%emt 0:15:46]} Bf6 {[%emt 0:0:11]} 16. Rac1 {[%emt 0:5:51]} b6 {[%emt 0:2:15]} 17. Nc6 {[%emt 0:2:12][%cal Og3g4]} Bb7 {[%emt 0:0:28]} 18. Rc2 {[%emt 0:5:18]} Rfc8 {[%emt 0:3:42]} 19. Rdc1 {[%emt 0:0:25]} Kf7 {[%emt 0:0:25] [#]} 20. Ne5+ $146 {[%emt 0:7:11]} ({Predecessor:} 20. e3 Ke8 21. e4 fxe4 22. Bxe4 Bxc6 23. Rxc6 Rxc6 24. Rxc6 Kd7 25. Rc2 g6 26. Be3 {½-½ Sasikiran,K (2676)-Wojtaszek,R (2734) New Delhi AICF AAI Cup 2012 (9)} )Bxe5 {[%emt 0:20:37]} 21. dxe5 {[%emt 0:0:11]} Rxc2 {[%emt 0:0:4]} 22. Rxc2 {[%emt 0:0:9]} Rc8 {[%emt 0:0:1]} 23. Rxc8 {[%emt 0:0:11]} Bxc8 $14 {[%emt 0:0:2][%mdl 4096] Endgame KBB-KBN} 24. e4 {[%emt 0:0:21]} fxe4 {[%emt 0:11:12]} 25. Bxe4 {[%emt 0:0:8]} Ba6 {[%emt 0:0:14]} 26. h4 {[%emt 0:1:32]} ({Much weaker is} 26. Bxh7 g6 27. Bh6 Nb4 $11 )g6 {[%emt 0:2:8]} 27. Kg2 {[%emt 0:1:38]} Bc4 {[%emt 0:0:28]} 28. a3 {[%emt 0:0:46]} Ne7 {[%emt 0:2:24]} 29. f3 {[%emt 0:13:3]} Bd5 {[%emt 0:4:35]} 30. Bd3 {[%emt 0:1:16]} Nf5 {[%emt 0:1:19]} 31. Kf2 {[%emt 0:0:11]} Nd4 {[%emt 0:0:46]} 32. f4 {[%emt 0:0:8]} (32. Bc3 $5 {[%cal Rc3d4]} Nf5 33. a4 $14 )h5 {[%emt 0:0:46] The position is equal.} 33. Bb4 {[%emt 0:2:5]} Nf5 {[%emt 0:9:3]} 34. Bd6 {[%emt 0:0:39] Black should prevent Bb8.} Ke8 {[%emt 0:1:16]} 35. Bxf5 {[%emt 0:4:34]} gxf5 $11 {[%emt 0:0:13] KB-KB} 36. Ke3 {[%emt 0:0:2]} Kd7 {[%emt 0:0:6]} 37. Kd4 {[%emt 0:0:3]} Kc6 {[%emt 0:0:8]} 38. Bf8 {[%emt 0:0:4]} a5 {[%emt 0:0:6]} 39. Be7 {[%emt 0:0:5]} Bf3 {[%emt 0:0:6]} 40. Bd8 {[%emt 0:0:0]} Kb5 {[%emt 0:0:0]} 41. Bc7 {[%emt 0:0:24]} Bg4 {[%emt 0:0:17]} 42. Bd8 {[%emt 0:0:4]} Bd1 {[%emt 0:0:11]} 43. Bc7 {[%emt 0:0:5] Weighted Error Value: White=0.03 (flawless) /Black=0.03 (flawless)} 1/2-1/2